bitfinex-derivatives/quotes_BTCF0:USTF0_20220102
["timestamp","ask_amount","ask_price","bid_price","bid_amount"]
[1641091901462,1.01517136,47395.0,47394.0,0.317175]
[1641091901963,0.176,47395.0,47394.0,0.380385]
[1641091902162,0.77523893,47395.0,47394.0,0.06321]
[1641091902362,0.59923893,47395.0,47394.0,0.24321]
[1641091902562,0.59923893,47395.0,47394.0,0.06321]
[1641091902862,0.59923893,47395.0,47394.0,0.380899]
[1641091903964,1.19881623,47398.0,47394.0,0.380899]
[1641091904362,1.19881623,47396.0,47394.0,2.16401763]
[1641091904761,1.19881623,47396.0,47394.0,1.84632863]
[1641091904963,1.19881623,47397.0,47395.0,2.58311863]
[1641091906062,1.19881623,47398.0,47395.0,2.58311863]
[1641091906563,1.19881623,47398.0,47396.0,1.78311863]
[1641091907766,1.19881623,47398.0,47397.0,0.9595339]
[1641091908568,0.16033567,47399.0,47397.0,1.78311863]
[1641091908968,0.18,47398.0,47397.0,1.78311863]
[1641091909167,0.26219,47398.0,47397.0,1.78311863]
[1641091909369,0.28329548,47398.0,47396.0,0.82358473]
[1641091909567,0.18,47397.0,47387.0,1.14170662]
[1641091909768,0.18,47391.0,47387.0,1.14170662]
[1641091909969,0.18,47388.0,47381.0,0.14033567]
[1641091910170,0.39385567,47388.0,47381.0,0.14033567]
[1641091911070,0.40485567,47388.0,47381.0,0.14033567]
[1641091912271,0.40485567,47388.0,47382.0,0.8]
[1641091912472,0.21385567,47388.0,47382.0,0.8]
[1641091912771,0.14033567,47388.0,47382.0,0.8]
[1641091913172,0.32533567,47388.0,47382.0,0.8]
[1641091914476,0.14033567,47388.0,47382.0,0.8]
[1641091915075,0.31133567,47388.0,47382.0,0.8]
[1641091916477,0.14033567,47388.0,47382.0,0.8]
[1641091917078,0.31133567,47388.0,47382.0,0.8]
[1641091918581,0.14033567,47388.0,47382.0,0.8]
[1641091919182,0.31133567,47388.0,47382.0,0.8]
[1641091920184,0.31133567,47388.0,47382.0,0.98]
[1641091920386,0.14033567,47388.0,47382.0,0.98]
[1641091921287,0.32233567,47388.0,47382.0,0.98]
[1641091921989,0.32233567,47388.0,47382.0,0.8]
[1641091922190,0.32233567,47388.0,47383.0,0.314832]
[1641091922491,0.14033567,47388.0,47383.0,0.314832]
[1641091923090,0.31633567,47388.0,47383.0,0.314832]
[1641091923291,0.31633567,47388.0,47382.0,0.8]
[1641091924503,0.14033567,47388.0,47382.0,0.8]
[1641091925004,0.25471,47393.0,47382.0,0.8]
[1641091925205,0.174,47388.0,47382.0,0.8]
[1641091926212,0.31433567,47388.0,47382.0,0.8]
[1641091927019,0.14033567,47388.0,47382.0,0.8]
[1641091927215,0.31433567,47388.0,47382.0,0.8]
[1641091928416,0.14033567,47388.0,47382.0,0.8]
[1641091929114,0.31433567,47388.0,47382.0,0.8]
[1641091930416,0.14033567,47388.0,47382.0,0.8]
[1641091931220,0.08996337,47387.0,47383.0,0.90597554]
[1641091931421,0.08996337,47387.0,47385.0,1.17548669]
[1641091932621,0.14033567,47388.0,47385.0,1.17548669]
[1641091932821,0.3594717,47387.0,47385.0,1.17548669]
[1641091933020,0.3594717,47387.0,47383.0,1.49702962]
[1641091933620,0.3594717,47387.0,47383.0,0.59105408]
[1641091933820,0.3594717,47387.0,47384.0,0.59105408]
[1641091934420,0.3594717,47387.0,47383.0,0.59105408]
[1641091935222,0.5394717,47387.0,47383.0,1.49494598]
[1641091936522,0.3594717,47387.0,47383.0,1.49494598]
[1641091937222,0.5384717,47387.0,47383.0,1.49494598]
[1641091938424,0.3594717,47387.0,47383.0,1.49494598]
[1641091939223,0.5394717,47387.0,47383.0,1.49494598]
[1641091939525,0.5394717,47387.0,47384.0,0.317843]
[1641091939724,0.5394717,47387.0,47384.0,0.98275708]
[1641091940528,0.3594717,47387.0,47384.0,0.98275708]
[1641091941124,0.3594717,47388.0,47385.0,1.49361235]
[1641091942426,0.3594717,47388.0,47386.0,0.316151]
[1641091942827,0.3594717,47389.0,47386.0,0.316151]
[1641091943027,0.3594717,47389.0,47388.0,1.39008521]
[1641091943326,0.3594717,47389.0,47388.0,1.70756321]
[1641091943727,0.9585912,47391.0,47388.0,1.70756321]
[1641091943926,0.3594717,47391.0,47388.0,2.29861729]
[1641091944328,0.3594717,47391.0,47390.0,0.001]
[1641091944729,0.5991195,47393.0,47390.0,0.317501]
[1641091944928,0.3594717,47395.0,47392.0,0.001]
[1641091945131,0.3594717,47395.0,47394.0,0.001]
[1641091945529,0.3594717,47395.0,47394.0,0.003193]
[1641091946930,0.3594717,47395.0,47394.0,0.002193]
[1641091947430,0.5314717,47395.0,47394.0,0.185]
[1641091947831,0.5314717,47395.0,47394.0,0.501432]
[1641091948528,0.3594717,47395.0,47394.0,0.316432]
[1641091949029,0.3594717,47395.0,47394.0,0.73842495]
[1641091949230,0.5364717,47395.0,47394.0,0.92242495]
[1641091949828,0.177,47395.0,47394.0,0.92242495]
[1641091950628,0.3594717,47396.0,47394.0,0.73842495]
[1641091950828,0.3594717,47396.0,47395.0,0.001]
[1641091951028,0.3594717,47396.0,47395.0,0.05826]
[1641091951230,0.3594717,47396.0,47395.0,0.372844]
[1641091952231,0.5991195,47397.0,47395.0,0.372844]
[1641091952232,0.3594717,47397.0,47395.0,0.372844]
[1641091952431,0.3594717,47397.0,47396.0,0.001]
[1641091952934,0.73945517,47398.0,47396.0,0.801]
[1641091953135,0.73945517,47398.0,47396.0,0.8]
[1641091953332,0.178,47397.0,47396.0,0.983]
[1641091953530,0.178,47397.0,47396.0,0.984]
[1641091955234,0.357,47397.0,47396.0,1.167]
[1641091955436,0.357,47397.0,47396.0,1.166]
[1641091955835,0.357,47397.0,47396.0,0.366]
[1641091956035,0.537,47397.0,47396.0,0.366]
[1641091956536,0.537,47397.0,47396.0,0.183]
[1641091956737,0.18,47397.0,47389.0,0.58944905]
[1641091956935,0.18,47394.0,47389.0,0.58944905]
[1641091957136,0.18,47394.0,47388.0,1.30645185]
[1641091957347,0.18,47394.0,47389.0,0.152]
[1641091958338,0.5991195,47395.0,47389.0,0.152]
[1641091958539,0.18,47393.0,47388.0,0.8]
[1641091958739,0.5991195,47395.0,47392.0,0.001]
[1641091958939,0.5991195,47394.0,47388.0,0.82110063]
[1641091959740,0.193,47395.0,47389.0,0.3152]
[1641091959939,0.373,47395.0,47389.0,0.3152]
[1641091960139,0.373,47395.0,47388.0,0.82110063]
[1641091960543,0.18,47395.0,47388.0,0.82110063]
[1641091961243,0.368,47395.0,47388.0,0.96810063]
[1641091962041,0.368,47395.0,47388.0,0.947]
[1641091962242,0.9671195,47395.0,47388.0,0.947]
[1641091962543,0.7791195,47395.0,47388.0,0.8]
[1641091963145,0.18,47393.0,47388.0,0.8]
[1641091963342,0.7881195,47395.0,47392.0,0.001]
[1641091963542,0.7881195,47395.0,47388.0,0.952]
[1641091963743,0.189,47395.0,47388.0,0.952]
[1641091964644,0.7791195,47397.0,47388.0,0.8]
[1641091965254,0.9711195,47397.0,47388.0,0.8]
[1641091965857,0.7911195,47397.0,47388.0,0.8]
[1641091966056,0.7911195,47397.0,47389.0,0.02110018]
[1641091966258,0.7911195,47397.0,47389.0,0.33784018]
[1641091966456,0.5991195,47397.0,47389.0,0.33784018]
[1641091967366,0.7881195,47397.0,47389.0,0.33784018]
[1641091967567,0.9681195,47397.0,47389.0,0.33784018]
[1641091968268,0.7881195,47397.0,47389.0,0.33784018]
[1641091968567,0.5991195,47397.0,47389.0,0.33784018]
[1641091968769,0.35926405,47395.0,47389.0,0.33784018]
[1641091969267,0.54726405,47395.0,47389.0,0.46684018]
[1641091969467,0.54726405,47395.0,47389.0,0.15010018]
[1641091970469,0.35926405,47395.0,47389.0,0.02110018]
[1641091970669,0.35926405,47395.0,47394.0,0.001]
[1641091971273,0.54826405,47395.0,47394.0,0.126]
[1641091971971,0.189,47395.0,47394.0,0.126]
[1641091973272,0.187,47395.0,47394.0,0.143]
[1641091973473,0.7861195,47395.0,47394.0,0.143]
[1641091974573,0.5991195,47395.0,47394.0,0.001]
[1641091975274,0.7821195,47395.0,47394.0,0.149]
[1641091975876,0.183,47395.0,47394.0,0.149]
[1641091976577,0.35938588,47396.0,47394.0,0.001]
[1641091976880,0.35938588,47396.0,47395.0,0.001]
[1641091977277,0.53138588,47396.0,47395.0,0.001]
[1641091977876,0.172,47396.0,47395.0,0.001]
[1641091978078,1.10055726,47396.0,47395.0,1.69745938]
[1641091978678,0.92855726,47396.0,47395.0,1.69745938]
[1641091979280,1.09855726,47396.0,47395.0,1.87545938]
[1641091979680,0.25994184,47396.0,47395.0,1.87545938]
[1641091979888,0.17,47396.0,47395.0,1.64011403]
[1641091981183,0.186,47396.0,47395.0,0.87222341]
[1641091981386,1.11502636,47396.0,47395.0,0.87222341]
[1641091981987,0.27594184,47396.0,47395.0,0.001]
[1641091982388,1.47396386,47396.0,47395.0,0.001]
[1641091982584,1.28796386,47396.0,47395.0,0.001]
[1641091983186,1.47496386,47396.0,47395.0,0.001]
[1641091983587,0.27694184,47396.0,47395.0,0.001]
[1641091984388,1.47496386,47396.0,47395.0,0.001]
[1641091984591,1.28796386,47396.0,47395.0,0.001]
[1641091985289,1.47696386,47396.0,47395.0,0.001]
[1641091986791,1.28796386,47396.0,47395.0,0.001]
[1641091987196,1.47596386,47396.0,47395.0,0.001]
[1641091987693,1.47596386,47396.0,47395.0,1.49102448]
[1641091987694,0.188,47396.0,47395.0,1.49102448]
[1641091988594,1.19802202,47397.0,47395.0,0.59123315]
[1641091988796,0.08994184,47396.0,47394.0,0.59023315]
[1641091989094,0.08994184,47396.0,47395.0,0.001]
[1641091989295,0.189,47396.0,47395.0,0.59123315]
[1641091989994,0.27894184,47396.0,47395.0,1.49111496]
[1641091991300,0.27994184,47396.0,47395.0,1.49111496]
[1641091992596,0.08994184,47396.0,47395.0,0.59123315]
[1641091992798,1.28796386,47396.0,47395.0,0.001]
[1641091993195,1.47896386,47396.0,47395.0,0.001]
[1641091993998,1.38902202,47396.0,47395.0,0.001]
[1641091994396,0.191,47396.0,47395.0,0.001]
[1641091994597,0.08994184,47396.0,47395.0,0.001]
[1641091995197,0.27894184,47396.0,47395.0,0.001]
[1641091995400,0.189,47396.0,47395.0,0.001]
[1641091996002,1.47772105,47396.0,47395.0,0.001]
[1641091997103,1.28872105,47396.0,47395.0,0.001]
[1641091997304,1.47072105,47396.0,47395.0,0.001]
[1641091997604,0.27194184,47396.0,47395.0,0.9018456]
[1641091997806,1.49799818,47396.0,47395.0,1.49207875]
[1641091998306,1.49799818,47396.0,47395.0,0.59123315]
[1641091998505,1.31599818,47396.0,47395.0,0.59123315]
[1641091999411,1.50299818,47396.0,47395.0,0.59123315]
[1641092000112,1.50299818,47396.0,47395.0,0.001]
[1641092000312,1.50299818,47396.0,47395.0,0.82623597]
[1641092000512,1.31599818,47397.0,47395.0,0.82623597]
[1641092000713,1.31599818,47397.0,47395.0,0.82523597]
[1641092001126,1.31599818,47397.0,47396.0,0.59112335]
[1641092001325,1.50199818,47397.0,47396.0,0.59112335]
[1641092002525,1.40594002,47397.0,47396.0,0.59112335]
[1641092003128,1.31599818,47397.0,47396.0,0.59112335]
[1641092003328,1.50399818,47397.0,47396.0,0.59112335]
[1641092004528,0.08994184,47397.0,47396.0,0.59112335]
[1641092005329,0.188,47397.0,47396.0,0.59112335]
[1641092006030,0.27794184,47397.0,47395.0,0.59112335]
[1641092006531,0.08994184,47397.0,47395.0,0.59112335]
[1641092006931,0.08994184,47396.0,47394.0,0.82523597]
[1641092007131,0.08994184,47396.0,47395.0,0.001]
[1641092007332,0.186,47397.0,47395.0,0.001]
[1641092007532,0.186,47397.0,47394.0,0.82523597]
[1641092008231,0.08994184,47396.0,47394.0,0.82523597]
[1641092008431,0.08994184,47396.0,47395.0,0.001]
[1641092009231,0.27894184,47396.0,47395.0,0.001]
[1641092009832,0.27894184,47396.0,47395.0,0.9018927]
[1641092011136,0.08994184,47396.0,47395.0,0.9018927]
[1641092011334,0.27794184,47396.0,47395.0,0.9018927]
[1641092012535,0.08994184,47396.0,47395.0,0.9018927]
[1641092013335,0.189,47396.0,47395.0,0.9018927]
[1641092014337,0.27894184,47396.0,47395.0,0.9018927]
[1641092014538,0.08994184,47396.0,47395.0,0.9018927]
[1641092015339,0.27694184,47396.0,47395.0,0.9018927]
[1641092016639,0.08994184,47396.0,47395.0,0.9018927]
[1641092017140,0.08994184,47396.0,47395.0,1.72931507]
[1641092017340,0.27594184,47396.0,47395.0,1.72931507]
[1641092017842,0.186,47396.0,47395.0,0.82842237]
[1641092018541,0.186,47396.0,47395.0,0.001]
[1641092018744,0.27594184,47396.0,47395.0,0.9018927]
[1641092019343,0.27794184,47396.0,47395.0,0.9018927]
[1641092020542,0.08994184,47396.0,47395.0,0.9018927]
[1641092021242,0.18,47396.0,47395.0,2.07737939]
[1641092022046,0.26994184,47396.0,47395.0,0.001]
[1641092022545,0.08994184,47396.0,47395.0,0.001]
[1641092022746,0.08994184,47396.0,47395.0,0.9018927]
[1641092023346,1.38224072,47396.0,47395.0,0.9018927]
[1641092023949,1.47218256,47396.0,47395.0,2.07737939]
[1641092024549,1.28918256,47396.0,47395.0,2.07737939]
[1641092025348,1.47218256,47396.0,47395.0,2.07737939]
[1641092025949,1.47218256,47396.0,47395.0,2.90304784]
[1641092026151,0.27294184,47396.0,47395.0,1.72756115]
[1641092026550,0.08994184,47396.0,47395.0,1.72756115]
[1641092027350,0.26994184,47396.0,47395.0,1.72756115]
[1641092028651,0.08994184,47396.0,47395.0,1.72756115]
[1641092029253,0.27694184,47396.0,47395.0,1.72756115]
[1641092030557,0.08994184,47396.0,47395.0,1.72756115]
[1641092031258,0.26994184,47396.0,47395.0,1.72756115]
[1641092031657,1.46918256,47396.0,47395.0,0.9018927]
[1641092032658,1.28918256,47396.0,47395.0,0.9018927]
[1641092033359,1.47418256,47396.0,47395.0,0.9018927]
[1641092034358,0.27494184,47396.0,47395.0,1.72756115]
[1641092034558,0.08994184,47396.0,47395.0,1.72756115]
[1641092035258,0.26994184,47396.0,47395.0,1.72756115]
[1641092036560,0.08994184,47396.0,47395.0,1.72756115]
[1641092037261,0.21494184,47396.0,47395.0,1.72756115]
[1641092038261,1.05416171,47396.0,47395.0,0.9018927]
[1641092038763,0.92916171,47396.0,47395.0,0.9018927]
[1641092039363,1.08216171,47396.0,47395.0,0.9018927]
[1641092040062,0.99221987,47396.0,47395.0,0.9018927]
[1641092040662,0.83921987,47396.0,47395.0,0.9018927]
[1641092040863,0.08994184,47397.0,47395.0,0.9018927]
[1641092041066,0.08994184,47397.0,47396.0,0.801]
[1641092041067,1.19924072,47397.0,47396.0,0.801]
[1641092041667,1.19924072,47397.0,47396.0,0.8]
[1641092042067,1.19924072,47398.0,47396.0,2.52642857]
[1641092042865,1.19924072,47398.0,47397.0,1.49046473]
[1641092043266,1.39024072,47398.0,47397.0,1.49046473]
[1641092043865,1.31599818,47401.0,47397.0,1.52135528]
[1641092044064,1.43876396,47405.0,47399.0,0.60194625]
[1641092044265,0.86816575,47405.0,47404.0,0.8]
[1641092044464,0.86816575,47405.0,47404.0,0.892344]
[1641092044665,0.86816575,47405.0,47404.0,1.072344]
[1641092044865,1.8433,47412.0,47404.0,1.49524095]
[1641092045066,1.8433,47412.0,47409.0,0.001]
[1641092045266,0.14033567,47413.0,47411.0,0.001]
[1641092045565,1.9539,47427.0,47410.0,0.009794]
[1641092045566,0.18,47420.0,47412.0,0.82208914]
[1641092045765,0.18,47420.0,47412.0,1.13505914]
[1641092045966,0.18,47420.0,47412.0,0.82108914]
[1641092046268,0.18,47420.0,47412.0,0.8]
[1641092047267,0.18,47420.0,47412.0,0.986]
[1641092047465,0.14033567,47422.0,47412.0,0.986]
[1641092048065,0.18,47417.0,47412.0,0.986]
[1641092048465,0.35901928,47413.0,47412.0,0.986]
[1641092048665,0.35901928,47413.0,47412.0,0.987]
[1641092049266,0.35901928,47413.0,47412.0,0.992]
[1641092050268,0.35901928,47413.0,47412.0,0.191]
[1641092050567,0.35901928,47414.0,47410.0,0.009794]
[1641092050868,0.18,47412.0,47406.0,0.14033567]
[1641092051067,0.18,47413.0,47406.0,0.14033567]
[1641092051267,0.18,47413.0,47410.0,0.19]
[1641092051966,0.35901928,47412.0,47410.0,0.19]
[1641092052666,0.35901928,47412.0,47406.0,0.14033567]
[1641092053267,0.35901928,47412.0,47406.0,0.32833567]
[1641092053467,0.18,47413.0,47406.0,0.32833567]
[1641092054666,0.18,47413.0,47406.0,0.14033567]
[1641092055069,0.16143156,47416.0,47406.0,0.14033567]
[1641092055268,0.16143156,47416.0,47406.0,0.32633567]
[1641092056670,0.16143156,47416.0,47406.0,0.14033567]
[1641092057068,0.16143156,47416.0,47406.0,0.15012967]
[1641092057284,0.16143156,47416.0,47406.0,0.32712967]
[1641092058787,0.16143156,47416.0,47406.0,0.15012967]
[1641092059487,0.16143156,47416.0,47406.0,0.32912967]
[1641092060688,0.59822554,47415.0,47406.0,0.32912967]
[1641092061288,0.7596571,47416.0,47406.0,0.34412967]
[1641092061488,0.7596571,47416.0,47407.0,0.316974]
[1641092063390,0.7596571,47416.0,47407.0,0.507974]
[1641092064694,0.7596571,47416.0,47407.0,0.316974]
[1641092065292,0.7596571,47416.0,47407.0,0.508974]
[1641092065995,0.91856121,47416.0,47407.0,0.508974]
[1641092066492,0.91856121,47416.0,47407.0,0.316974]
[1641092067198,0.32033567,47416.0,47407.0,0.316974]
[1641092067394,0.32033567,47416.0,47407.0,0.512974]
[1641092067595,0.14033567,47416.0,47407.0,0.512974]
[1641092068596,0.14033567,47416.0,47407.0,0.316974]
[1641092069297,0.14033567,47416.0,47407.0,0.512974]
[1641092069700,1.31606613,47412.0,47410.0,0.82553587]
[1641092071199,1.31606613,47412.0,47404.0,1.29135136]
[1641092071200,0.0210985,47411.0,47404.0,1.29135136]
[1641092071398,0.0210985,47411.0,47410.0,0.04766433]
[1641092071600,0.2010985,47411.0,47410.0,0.04766433]
[1641092071805,0.0210985,47411.0,47410.0,0.04766433]
[1641092071999,0.16143417,47411.0,47410.0,0.04766433]
[1641092072699,0.34143417,47411.0,47397.0,0.94033567]
[1641092072900,0.34143417,47411.0,47397.0,0.95012967]
[1641092073299,0.53343417,47411.0,47398.0,0.316806]
[1641092073500,0.35343417,47411.0,47398.0,0.316806]
[1641092073700,0.18,47408.0,47398.0,0.316806]
[1641092074101,0.59886331,47407.0,47398.0,0.316806]
[1641092074300,0.59886331,47407.0,47398.0,0.33790197]
[1641092074500,0.59886331,47407.0,47399.0,0.18]
[1641092074708,0.59886331,47407.0,47398.0,0.33790197]
[1641092074900,0.59886331,47407.0,47400.0,0.317861]
[1641092075100,0.59886331,47407.0,47399.0,0.313688]
[1641092075302,0.78086331,47407.0,47399.0,0.493688]
[1641092075701,0.182,47407.0,47399.0,0.493688]
[1641092076307,0.182,47407.0,47399.0,0.313688]
[1641092076701,0.59886331,47408.0,47399.0,0.313688]
[1641092077304,0.78386331,47408.0,47399.0,0.413688]
[1641092078704,0.59886331,47408.0,47399.0,0.313688]
[1641092079104,0.35931246,47406.0,47399.0,0.313688]
[1641092079305,0.35931246,47406.0,47399.0,0.413688]
[1641092079505,0.35931246,47407.0,47402.0,0.83539555]
[1641092081410,0.35931246,47407.0,47402.0,0.158]
[1641092081411,0.35931246,47406.0,47402.0,0.158]
[1641092082613,0.35931246,47406.0,47401.0,0.83539555]
[1641092083211,0.18,47404.0,47401.0,0.83539555]
[1641092083412,0.18,47404.0,47401.0,1.00439555]
[1641092083611,0.53931246,47404.0,47401.0,0.169]
[1641092084212,0.35931246,47404.0,47401.0,0.169]
[1641092084513,0.35931246,47403.0,47401.0,0.30933567]
[1641092084712,0.35931246,47403.0,47401.0,0.14033567]
[1641092085416,0.54331246,47403.0,47401.0,0.32733567]
[1641092086718,0.35931246,47403.0,47401.0,0.14033567]
[1641092087319,0.54331246,47403.0,47401.0,0.30933567]
[1641092089321,0.173,47403.0,47401.0,0.32633567]
[1641092089523,0.173,47403.0,47401.0,0.92309108]
[1641092089721,0.173,47403.0,47401.0,1.01139108]
[1641092090327,0.173,47403.0,47401.0,1.87029463]
[1641092090724,0.35931246,47404.0,47401.0,1.68429463]
[1641092091125,0.35931246,47404.0,47401.0,0.82539108]
[1641092091325,0.176,47404.0,47401.0,0.41263567]
[1641092091528,0.176,47404.0,47403.0,1.19342221]
[1641092092829,0.08992724,47404.0,47403.0,1.19342221]
[1641092093326,0.26592724,47404.0,47403.0,1.37742221]
[1641092093528,0.176,47404.0,47403.0,1.37742221]
[1641092094227,0.26592724,47404.0,47403.0,1.04371492]
[1641092094727,0.08992724,47404.0,47403.0,0.85971492]
[1641092095431,0.26492724,47404.0,47403.0,1.04371492]
[1641092096028,0.175,47404.0,47403.0,0.184]
[1641092096436,0.26492724,47404.0,47403.0,1.88168209]
[1641092096637,0.08992724,47404.0,47403.0,1.69768209]
[1641092097339,0.28092724,47404.0,47403.0,1.69768209]
[1641092097939,0.28092724,47404.0,47403.0,0.83796717]
[1641092098539,0.28092724,47404.0,47403.0,0.89487717]
[1641092098741,0.08992724,47404.0,47403.0,0.89487717]
[1641092099342,0.14492724,47404.0,47403.0,1.07687717]
[1641092099843,0.14492724,47404.0,47403.0,0.23891]
[1641092100043,0.055,47404.0,47403.0,1.09862492]
[1641092100744,0.08992724,47407.0,47403.0,0.91662492]
[1641092101044,0.08992724,47404.0,47403.0,0.91662492]
[1641092101444,0.08992724,47406.0,47404.0,0.83763181]
[1641092103445,0.27992724,47406.0,47404.0,0.83763181]
[1641092103645,0.19,47406.0,47404.0,0.83763181]
[1641092104446,0.08992724,47405.0,47404.0,0.83763181]
[1641092104647,0.08992724,47405.0,47403.0,0.83763181]
[1641092105448,0.28192724,47405.0,47403.0,0.83763181]
[1641092106247,0.192,47405.0,47403.0,0.83763181]
[1641092106849,1.40740583,47407.0,47403.0,0.83763181]
[1641092107047,1.40740583,47407.0,47403.0,0.92452181]
[1641092107250,1.28874199,47404.0,47403.0,0.08689]
[1641092107748,0.08992724,47404.0,47403.0,0.08689]
[1641092107950,0.08992724,47406.0,47403.0,0.08689]
[1641092109449,1.19881891,47404.0,47403.0,0.08689]
[1641092111452,1.36381891,47404.0,47403.0,0.25889]
[1641092112454,0.25492724,47404.0,47403.0,0.25889]
[1641092112854,0.08992724,47404.0,47403.0,0.08689]
[1641092113059,0.08992724,47404.0,47401.0,1.33375788]
[1641092113453,0.22492724,47404.0,47403.0,0.148]
[1641092113756,0.135,47404.0,47403.0,0.148]
[1641092114357,0.22492724,47404.0,47403.0,0.22109]
[1641092114855,0.08992724,47404.0,47403.0,0.07309]
[1641092115559,0.14492724,47404.0,47403.0,0.25509]
[1641092115857,0.055,47404.0,47403.0,0.25509]
[1641092116057,0.055,47404.0,47403.0,1.44851221]
[1641092116759,0.08992724,47404.0,47403.0,2.12869982]
[1641092117560,0.179,47404.0,47403.0,2.31069982]
[1641092118362,0.26892724,47404.0,47403.0,1.11727761]
[1641092118765,0.08992724,47404.0,47403.0,0.93527761]
[1641092119464,0.18792724,47404.0,47403.0,1.12427761]
[1641092119762,0.098,47404.0,47403.0,1.12427761]
[1641092120666,0.18792724,47404.0,47403.0,1.12427761]
[1641092120862,0.08992724,47404.0,47403.0,0.93527761]
[1641092121463,0.18792724,47404.0,47403.0,1.12427761]
[1641092121964,0.098,47404.0,47403.0,1.12427761]
[1641092122666,0.18792724,47404.0,47403.0,1.12427761]
[1641092122867,0.08992724,47404.0,47403.0,0.93527761]
[1641092123466,0.22192724,47404.0,47403.0,1.12227761]
[1641092124067,0.132,47404.0,47403.0,1.12227761]
[1641092124770,0.22192724,47404.0,47403.0,1.12227761]
[1641092125567,0.30092724,47404.0,47403.0,1.31027761]
[1641092126867,0.08992724,47404.0,47403.0,0.93527761]
[1641092127468,0.21292724,47404.0,47403.0,1.12227761]
[1641092127871,0.21292724,47404.0,47403.0,2.31569982]
[1641092128673,0.21292724,47404.0,47403.0,1.12227761]
[1641092128878,0.08992724,47404.0,47403.0,0.93527761]
[1641092129577,0.22092724,47404.0,47403.0,1.12127761]
[1641092129975,0.131,47404.0,47403.0,1.12127761]
[1641092130679,0.22092724,47404.0,47403.0,1.12127761]
[1641092130977,0.08992724,47404.0,47403.0,0.93527761]
[1641092131579,0.24292724,47404.0,47403.0,1.12027761]
[1641092132079,0.153,47404.0,47403.0,2.31369982]
[1641092132879,0.08992724,47404.0,47403.0,2.12869982]
[1641092133279,1.19441086,47405.0,47403.0,2.12869982]
[1641092133479,0.111,47404.0,47403.0,2.31569982]
[1641092134082,0.111,47404.0,47403.0,1.45351221]
[1641092134580,0.20092724,47404.0,47403.0,1.45351221]
[1641092134779,0.08992724,47404.0,47403.0,1.26651221]
[1641092135479,0.22992724,47404.0,47403.0,1.45251221]
[1641092135879,0.14,47404.0,47403.0,1.45251221]
[1641092136784,0.08992724,47404.0,47403.0,1.26651221]
[1641092137487,0.23192724,47404.0,47403.0,1.45251221]
[1641092137687,0.142,47404.0,47403.0,1.45251221]
[1641092138085,0.142,47404.0,47403.0,0.25909]
[1641092138288,0.23192724,47404.0,47403.0,0.25909]
[1641092138787,0.08992724,47404.0,47403.0,0.07309]
[1641092138987,0.08992724,47404.0,47403.0,1.19875351]
[1641092139289,1.19441086,47406.0,47403.0,1.19875351]
[1641092139486,1.19441086,47405.0,47403.0,1.19875351]
[1641092139686,0.139,47404.0,47403.0,1.38475351]
[1641092140787,0.22892724,47404.0,47403.0,1.38475351]
[1641092140987,0.08992724,47404.0,47403.0,1.19875351]
[1641092141689,0.24492724,47404.0,47403.0,1.38375351]
[1641092142288,0.24492724,47404.0,47403.0,0.185]
[1641092142289,1.08292478,47404.0,47403.0,0.185]
[1641092142790,0.08992724,47404.0,47401.0,0.14033567]
[1641092142991,0.08992724,47404.0,47403.0,1.19878039]
[1641092143591,0.24192724,47404.0,47403.0,1.38378039]
[1641092143792,0.152,47404.0,47403.0,1.38378039]
[1641092144495,0.24192724,47404.0,47403.0,1.38378039]
[1641092145302,0.24192724,47404.0,47403.0,1.50365984]
[1641092145602,0.28392724,47404.0,47403.0,1.69165984]
[1641092145802,0.28392724,47404.0,47403.0,1.77685984]
[1641092146603,0.28392724,47404.0,47403.0,1.77785984]
[1641092146902,0.59893022,47404.0,47403.0,0.20607945]
[1641092147703,0.59893022,47404.0,47403.0,0.39407945]
[1641092148905,0.59893022,47404.0,47403.0,0.52442645]
[1641092149106,0.59893022,47405.0,47403.0,1.83837554]
[1641092149407,1.31747859,47412.0,47406.0,0.42188086]
[1641092149609,1.31747859,47412.0,47411.0,0.801]
[1641092149807,0.47387296,47412.0,47411.0,0.94133567]
[1641092150007,0.0520466,47412.0,47411.0,1.27935237]
[1641092150206,0.29236056,47423.0,47411.0,1.27935237]
[1641092150410,0.14033567,47423.0,47414.0,0.18]
[1641092150606,1.43607556,47420.0,47414.0,0.2552]
[1641092150807,1.31841005,47417.0,47414.0,0.573075]
[1641092151006,1.31841005,47417.0,47414.0,0.393075]
[1641092151606,1.43607556,47420.0,47414.0,0.586075]
[1641092151807,1.43607556,47425.0,47417.0,0.14033567]
[1641092152008,1.58638896,47425.0,47417.0,0.14033567]
[1641092152209,1.58638896,47425.0,47419.0,0.8]
[1641092152608,1.43607556,47425.0,47419.0,0.8]
[1641092153609,1.62107556,47425.0,47419.0,0.8]
[1641092154210,1.43607556,47424.0,47419.0,0.8]
[1641092154912,1.62107556,47425.0,47419.0,0.8]
[1641092155110,1.43607556,47425.0,47419.0,0.8]
[1641092155709,1.62107556,47425.0,47419.0,0.8]
[1641092156509,1.62107556,47425.0,47417.0,0.14033567]
[1641092156712,1.31832911,47421.0,47417.0,0.14033567]
[1641092157712,1.31832911,47419.0,47417.0,0.14033567]
[1641092159312,1.31832911,47420.0,47418.0,0.83819096]
[1641092160314,1.31832911,47422.0,47417.0,0.33333567]
[1641092160514,1.31832911,47422.0,47417.0,1.53098805]
[1641092161016,1.31832911,47422.0,47417.0,1.33798805]
[1641092161214,1.31832911,47422.0,47421.0,0.5986301]
[1641092161714,1.50332911,47422.0,47421.0,0.5986301]
[1641092162614,0.185,47422.0,47419.0,0.8]
[1641092163013,0.59833747,47425.0,47419.0,0.8]
[1641092163214,0.59833747,47424.0,47419.0,0.8]
[1641092164818,0.78733747,47425.0,47419.0,0.8]
[1641092165019,0.59833747,47425.0,47419.0,0.8]
[1641092165718,0.78133747,47425.0,47419.0,0.8]
[1641092165918,0.59833747,47424.0,47419.0,0.8]
[1641092167118,0.59833747,47425.0,47420.0,0.316446]
[1641092167618,0.77333747,47425.0,47420.0,0.489446]
[1641092168219,0.175,47425.0,47420.0,0.489446]
[1641092168719,0.175,47425.0,47420.0,0.51053233]
[1641092168918,0.73867314,47428.0,47420.0,0.316446]